bitfinex/quotes_ETHUSD_20260217
["timestamp","ask_amount","ask_price","bid_price","bid_amount"]
[1771290330856,0.72348509,1998.3,1997.5,2.11656445]
[1771290331385,0.72348509,1998.3,1997.5,1.25156445]
[1771290331685,0.72348509,1998.3,1997.3,1.25264517]
[1771290333189,0.72348509,1998.1,1997.3,1.25264517]
[1771290335185,0.72348509,1998.0,1997.3,1.25264517]
[1771290337150,1.25128826,1998.0,1997.3,1.25264517]
[1771290337352,0.72348509,1997.9,1997.4,0.001]
[1771290337965,1.60548509,1998.2,1997.4,0.73017782]
[1771290339305,1.60548509,1998.2,1997.5,1.25156445]
[1771290339488,0.882,1998.2,1997.5,1.25156445]
[1771290340263,0.72348509,1998.1,1997.5,1.25156445]
[1771290341380,0.72348509,1998.0,1997.4,5.00725782]
[1771290342990,1.60548509,1998.2,1997.4,5.00725782]
[1771290343193,0.901,1998.5,1997.5,0.72917782]
[1771290343699,1.62448509,1998.5,1997.6,1.2515018]
[1771290344596,2.87542341,1998.5,1997.6,1.2515018]
[1771290345399,0.87499255,1998.4,1997.6,1.2515018]
[1771290346093,1.75499255,1998.7,1997.7,0.89094465]
[1771290349100,1.75499255,1998.7,1997.8,2.17455342]
[1771290349272,1.75499255,1998.7,1997.9,0.92317691]
[1771290350074,1.71419255,1998.7,1997.9,0.92317691]
[1771290350272,2.96501161,1998.7,1997.9,0.92317691]
[1771290350499,1.71419255,1998.7,1997.9,0.92317691]
[1771290350797,2.9650171,1998.7,1997.9,0.92317691]
[1771290351189,2.9354171,1998.7,1998.0,1.25125125]
[1771290351895,0.0011,1998.6,1998.0,1.25125125]
[1771290352507,0.0011,1998.6,1998.1,0.92317691]
[1771290353301,0.0011,1998.6,1998.3,0.92317691]
[1771290355599,0.0011,1998.6,1998.4,1.2510008]
[1771290358025,0.0011,1998.6,1998.2,5.00447887]
[1771290359880,0.0011,1998.7,1998.5,1.2509382]
[1771290362116,0.0011,1998.7,1998.2,1.25109149]
[1771290362320,0.86939702,1998.7,1998.2,1.25109149]
[1771290363583,0.86939702,1998.7,1998.0,1.2512076]
[1771290364003,1.25087561,1998.6,1997.9,5.00513204]
[1771290364291,2.11917263,1998.6,1997.9,5.00513204]
[1771290365619,2.11917263,1998.6,1997.9,1.25131387]
[1771290365818,2.11917263,1998.6,1998.0,0.001]
[1771290366000,2.12027263,1998.6,1998.0,0.001]
[1771290366405,0.86829702,1998.5,1998.0,0.001]
[1771290367504,0.86829702,1998.3,1997.5,1.25150888]
[1771290367839,0.86829702,1998.2,1997.5,1.25150888]
[1771290368626,2.11948564,1998.1,1997.4,0.001]
[1771290368826,0.86829702,1998.0,1997.4,0.001]
[1771290370697,1.74129702,1998.4,1997.5,2.17474136]
[1771290371229,1.74129702,1998.4,1997.6,0.92317691]
[1771290371834,0.0011,1998.6,1997.6,0.92317691]
[1771290372037,0.86939702,1998.6,1997.6,0.92317691]
[1771290372698,0.86939702,1998.6,1997.8,0.92317691]
[1771290373226,0.0011,1998.6,1997.8,0.92317691]
[1771290375030,0.87447559,1998.6,1997.9,1.25131387]
[1771290376536,0.87447559,1998.6,1997.6,1.2515018]
[1771290377039,0.87337559,1998.4,1997.6,1.2515018]
[1771290377341,0.87337559,1998.4,1997.5,1.25151962]
[1771290377908,0.87337559,1998.2,1997.5,1.25151962]
[1771290379233,0.87337559,1998.1,1997.5,1.25151962]
[1771290380545,0.87337559,1998.1,1998.0,0.001]
[1771290380729,0.87337559,1998.1,1997.5,1.25151962]
[1771290381040,0.87337559,1998.1,1997.9,0.001]
[1771290381633,0.87337559,1998.1,1997.7,0.001]
[1771290381634,2.12457022,1998.1,1997.7,0.001]
[1771290381833,0.87337559,1998.0,1997.7,0.001]
[1771290384649,2.12462735,1998.0,1997.7,0.001]
[1771290385245,0.87337559,1997.9,1997.7,0.001]
[1771290386745,0.87337559,1997.9,1997.2,5.00697922]
[1771290386944,0.871,1998.3,1997.3,0.89842171]
[1771290386945,2.99547844,1998.3,1997.3,0.89842171]
[1771290387152,0.87337559,1998.2,1997.2,5.00697922]
[1771290388748,0.87337559,1998.0,1997.2,5.00697922]
[1771290389445,0.87337559,1997.8,1997.2,5.00697922]
[1771290390951,0.873,1997.9,1997.2,5.00697922]
[1771290391553,2.99769351,1997.9,1997.2,2.15017416]
[1771290391854,2.99770833,1997.9,1997.2,2.15017416]
[1771290393052,0.87337559,1997.8,1997.1,5.00714467]
[1771290394044,0.87337559,1997.8,1997.1,1.25181513]
[1771290394641,0.87337559,1997.8,1997.3,0.001]
[1771290394843,0.87337559,1997.8,1997.3,0.00010605]
[1771290395550,2.12476003,1997.8,1997.3,0.00010605]
[1771290395954,0.873,1997.9,1997.3,0.00010605]
[1771290397541,1.74637559,1997.9,1997.3,1.25179583]
[1771290397730,2.99770523,1997.9,1997.3,1.25179583]
[1771290397929,0.87337559,1997.8,1997.3,0.00010605]
[1771290399768,0.87337559,1997.6,1996.9,1.25191715]
[1771290401534,1.25156445,1997.5,1996.8,1.25196145]
[1771290401739,0.87337559,1997.4,1996.8,1.25196145]
[1771290402162,0.87337559,1997.6,1996.8,2.15038316]
[1771290402377,5.00561338,1997.8,1996.8,2.15038316]
[1771290402378,0.87337559,1997.9,1996.9,0.89842171]
[1771290402556,0.872,1997.7,1996.9,0.89842171]
[1771290403748,0.872,1997.7,1997.0,2.15029952]
[1771290404065,0.0011,1998.0,1997.1,0.78613837]
[1771290405655,0.0011,1998.0,1997.3,0.78613837]
[1771290406256,0.81522375,1998.0,1997.2,1.25175245]
[1771290406868,0.81522375,1998.0,1997.2,2.03789082]
[1771290407373,0.81522375,1998.0,1997.3,0.78613837]
[1771290407570,0.0011,1998.0,1997.3,0.78613837]
[1771290407770,0.0011,1998.0,1997.4,2.03776548]
[1771290409680,0.0011,1998.0,1997.4,2.03876548]
[1771290409981,0.0011,1997.9,1997.4,2.03876548]
[1771290412392,0.0011,1997.9,1997.5,0.75446358]
[1771290414706,0.0011,1997.9,1997.6,1.2515018]
[1771290415072,0.0011,1997.9,1997.6,2.00596538]
[1771290415272,0.0011,1997.9,1997.6,1.2515018]
[1771290416108,0.0011,1997.9,1997.7,0.75446358]
[1771290416780,0.0011,1997.9,1997.8,1.25137651]
[1771290417684,0.0011,1997.9,1997.6,1.2515018]
[1771290418090,0.0011,1997.9,1997.5,1.25152152]
[1771290423219,0.0011,1997.9,1997.5,2.0059851]
[1771290423821,0.0011,1997.9,1997.5,1.25152152]
[1771290424015,0.0011,1997.8,1997.5,1.25152152]
[1771290426805,0.0011,1997.8,1997.4,2.11657605]
[1771290427328,0.0011,1997.8,1997.4,1.25257605]
[1771290427525,0.83417277,1997.8,1997.4,1.25257605]
[1771290427713,0.83417277,1997.8,1996.7,5.7626881]
[1771290427918,5.99458994,1997.5,1996.7,5.7626881]
[1771290428120,0.83307277,1997.6,1996.8,0.75446358]
[1771290428316,5.99458994,1997.7,1996.8,0.75446358]
[1771290428626,6.82766271,1997.7,1996.8,0.75446358]
[1771290429635,0.0011,1997.8,1997.0,0.75446358]
[1771290429848,0.0011,1997.8,1997.1,6.74905352]
[1771290430000,0.0011,1997.8,1997.4,0.75446358]
[1771290432042,0.0011,1997.8,1997.5,1.25156445]
[1771290433401,0.0011,1997.8,1997.5,2.00602803]
[1771290434135,0.0011,1997.8,1997.6,0.7466098]
[1771290437280,0.0011,1997.8,1997.7,1.25143915]
[1771290437435,0.0011,1997.8,1997.7,1.99804895]
[1771290438365,0.867,1998.3,1997.7,1.99804895]
[1771290438366,0.0011,1998.6,1997.8,0.7466098]
[1771290438674,0.0011,1998.3,1997.8,0.7466098]
[1771290438968,0.0011,1998.4,1997.8,0.7466098]
[1771290439336,0.0011,1998.4,1998.0,0.7466098]
[1771290439668,0.0011,1998.4,1998.1,0.879]
[1771290440547,0.0011,1998.4,1998.1,1.6256098]
[1771290441210,0.0011,1998.4,1998.2,0.7466098]
[1771290441464,0.0011,1998.4,1998.3,1.2510634]
[1771290443554,0.0011,1998.4,1998.2,5.00442232]
[1771290444301,0.0011,1998.6,1998.3,0.7466098]
[1771290444482,0.0011,1998.7,1998.4,0.7466098]
[1771290444656,0.0011,1998.8,1998.5,0.7466098]
[1771290444985,0.0022,1998.8,1998.6,1.6296098]
[1771290445360,0.902,1999.2,1998.7,0.7466098]
[1771290445565,0.902,1999.2,1998.8,1.25075045]
[1771290446168,0.0011,1999.3,1998.8,1.25075045]
[1771290448806,0.78841046,1999.3,1998.8,1.25075045]
[1771290448984,0.78841046,1999.3,1998.1,1.99773581]
[1771290449180,0.78731046,1999.1,1998.2,5.88847931]
[1771290449819,0.78731046,1999.1,1998.2,2.13512601]
[1771290449976,0.78731046,1999.1,1998.2,2.13612601]
[1771290450389,0.78731046,1998.9,1998.2,2.13612601]
[1771290451805,0.78731046,1999.1,1998.2,2.88273581]
[1771290452117,0.78731046,1999.1,1998.3,0.7466098]
[1771290452710,0.78731046,1999.1,1998.4,1.2510008]
[1771290454911,0.78731046,1999.1,1998.3,5.0040032]
[1771290456184,0.78841046,1999.2,1998.4,0.7466098]
[1771290456409,2.03893043,1999.2,1998.3,5.0040032]
[1771290456619,0.78731046,1999.1,1998.3,5.0040032]
[1771290456985,0.78731046,1999.0,1998.3,5.0040032]
[1771290457308,0.78731046,1999.0,1998.3,1.2510634]
[1771290459501,0.78731046,1998.9,1998.2,0.001]
[1771290460020,0.78731046,1998.9,1998.2,0.7476098]
[1771290461304,0.78731046,1998.9,1998.2,0.001]
[1771290461514,0.78731046,1998.9,1998.0,0.001]
[1771290461515,0.78731046,1998.7,1998.0,0.001]
[1771290462029,0.78731046,1998.5,1998.0,0.001]
[1771290462695,0.78731046,1998.5,1998.4,0.001]
[1771290462889,0.78731046,1998.5,1998.0,0.001]
[1771290463094,0.78731046,1998.5,1998.3,0.001]
[1771290463316,0.78731046,1998.5,1998.0,0.001]
[1771290463514,0.78731046,1998.5,1998.1,0.001]
[1771290463916,0.78731046,1998.3,1998.1,0.001]
[1771290464312,1.98676625,1998.5,1998.1,0.001]
[1771290464804,0.73579356,1998.5,1998.1,0.001]
[1771290465716,1.59579356,1998.7,1998.1,0.001]
[1771290466410,0.86,1998.7,1998.1,0.001]
[1771290467139,1.59579356,1998.7,1998.1,0.001]
[1771290467435,0.73579356,1998.7,1998.1,0.001]
[1771290468713,0.86,1999.0,1998.1,0.77563411]
[1771290469812,0.73689356,1999.1,1998.1,0.77563411]
[1771290470742,0.73689356,1999.1,1998.2,1.95161452]
[1771290471429,0.0011,1999.1,1998.3,0.70048851]
[1771290472734,0.0011,1999.1,1998.4,1.95148931]
[1771290474123,0.0011,1999.1,1998.5,0.70048851]
[1771290475536,0.0011,1999.1,1998.6,1.25087561]
[1771290475738,0.0011,1999.0,1998.6,1.25087561]
[1771290477747,0.0011,1999.0,1998.4,0.70048851]
[1771290479959,0.0011,1999.0,1998.5,1.2509382]
[1771290480534,0.0011,1999.0,1998.5,1.95142671]
[1771290482244,0.0011,1999.0,1998.6,0.70048851]
[1771290484166,0.0011,1999.0,1998.7,1.95130153]
[1771290484360,0.0011,1999.0,1998.7,1.25081302]
[1771290485271,0.72157992,1999.0,1998.3,1.2510634]
[1771290486378,0.72047992,1998.8,1998.2,5.0053646]
[1771290486883,0.72047992,1998.8,1998.2,0.001]
[1771290489053,0.72157992,1999.0,1998.2,0.70148851]
[1771290490058,0.0011,1999.0,1998.2,0.70148851]
[1771290490385,0.0011,1999.0,1998.3,1.95155191]
[1771290490590,0.0011,1999.0,1998.4,0.70048851]
[1771290492989,0.0011,1999.0,1998.6,0.70048851]
[1771290495183,0.0011,1999.0,1998.7,1.25081302]
[1771290498189,0.0011,1999.0,1998.7,1.95217491]
[1771290499291,0.0011,1999.0,1998.8,0.70136189]
[1771290499492,0.0011,1998.9,1998.8,0.70136189]
[1771290499991,0.0011,1999.0,1998.8,0.70136189]
[1771290501292,0.0011,1999.0,1998.9,1.25068787]
[1771290504296,0.0011,1999.5,1998.9,1.95204976]
[1771290504996,0.0011,1999.5,1999.0,0.70136189]
[1771290505198,0.0011,1999.5,1999.2,0.70136189]
[1771290505370,0.0011,1999.5,1999.3,1.25043765]
[1771290509269,0.69158897,1999.9,1999.3,1.25043765]
[1771290509471,0.69158897,1999.9,1999.3,1.95179954]
[1771290509902,0.69158897,1999.9,1999.3,7.92974422]
[1771290510101,0.0011,2000.0,1999.4,0.70136189]
[1771290510286,0.0011,2000.0,1999.3,7.22838233]
[1771290510287,0.69268897,2000.0,1999.3,7.22838233]
[1771290510785,0.69268897,2000.0,1999.3,7.92974422]
[1771290512516,0.0011,1999.4,1999.3,7.92974422]
[1771290512699,0.69268897,2000.0,1999.3,7.92974422]
[1771290513221,0.0011,1999.5,1999.3,7.92974422]
[1771290514093,0.0011,1999.7,1999.3,7.92974422]
[1771290514308,0.69268897,2000.0,1999.3,7.92974422]
[1771290514693,0.69268897,2000.0,1999.4,0.897]
[1771290515313,0.69268897,2000.0,1999.5,1.25031257]
[1771290515514,0.69158897,1999.9,1999.4,2.1473671]
[1771290515698,0.69158897,1999.9,1998.9,11.68303904]
[1771290515897,0.69158897,1999.9,1999.0,2.14762531]
[1771290517291,7.22909315,2000.0,1999.1,6.67930657]
[1771290517292,0.69158897,1999.8,1999.1,6.67930657]
[1771290518922,0.69158897,1999.8,1999.2,0.70136189]
[1771290519124,0.69158897,1999.8,1999.1,6.67930657]
[1771290519327,0.69158897,1999.8,1999.2,1.2505002]
[1771290519526,0.69158897,1999.7,1999.2,1.2505002]
[1771290520228,0.69158897,1999.7,1999.0,0.897]
[1771290520524,0.69158897,1999.6,1999.0,2.14757936]
[1771290520728,0.69158897,1999.6,1999.0,0.897]
[1771290521023,0.69158897,1999.4,1998.9,1.25163233]
[1771290521326,0.69158897,1999.4,1998.9,0.001]
[1771290522098,0.69158897,1999.6,1998.9,0.001]
[1771290522827,0.901,1999.8,1998.9,5.97894468]
[1771290522998,1.59258897,1999.8,1999.0,0.70136189]
[1771290523624,1.59258897,1999.8,1999.1,7.92986932]
[1771290523827,0.901,1999.8,1999.2,0.70136189]
[1771290524405,0.838,1999.9,1999.2,0.70136189]
[1771290524626,1.52298801,1999.9,1999.2,0.70136189]
[1771290525332,0.68498801,1999.8,1999.1,2.14956275]
[1771290525822,0.68608801,1999.8,1999.1,2.14956275]
[1771290527713,0.68608801,1999.8,1999.1,2.79621004]
[1771290530927,0.68608801,1999.8,1999.2,0.65924241]
[1771290531834,0.68608801,1999.8,1999.1,2.14956275]
[1771290533330,0.68608801,1999.8,1999.1,2.80880516]
[1771290534833,0.68608801,1999.8,1999.2,0.65924241]
[1771290535211,0.68608801,1999.8,1999.3,1.25043765]
[1771290537114,0.68608801,1999.8,1999.2,5.00175061]
[1771290538621,0.68608801,1999.8,1999.2,5.00275061]
[1771290538822,0.0011,1999.7,1999.2,5.00275061]
[1771290540641,0.6519188,1999.7,1999.2,5.00275061]
[1771290540950,0.0011,1999.7,1999.3,0.65924241]
[1771290542548,0.0011,1999.7,1999.2,0.001]
[1771290542722,0.0011,1999.7,1999.3,1.25039356]
[1771290544331,0.6519188,1999.7,1999.3,1.25039356]
[1771290544534,0.6519188,1999.7,1999.2,5.00289631]
[1771290545045,0.6519188,1999.7,1999.2,1.2515002]
[1771290545236,0.6508188,1999.6,1999.2,1.2515002]
[1771290550759,0.6508188,1999.6,1999.3,0.001]
[1771290550925,0.6519188,1999.6,1999.3,0.001]
[1771290551353,0.6519188,1999.6,1999.3,0.00017799]
[1771290551926,0.0011,1999.6,1999.3,0.00017799]
[1771290556474,0.653946,1999.6,1999.3,0.00017799]
[1771290557484,6.63343995,1999.4,1999.2,0.001]
[1771290557657,0.652846,1999.4,1999.2,0.001]
[1771290558941,0.652846,1999.3,1999.2,0.001]
[1771290561069,0.652846,1999.4,1999.2,0.001]
[1771290562776,1.90322353,1999.4,1999.2,0.001]
[1771290562981,0.652846,1999.2,1999.0,0.001]
[1771290563169,0.652846,1999.2,1998.8,0.001]
[1771290563880,0.833,1999.3,1998.8,1.25174365]
[1771290564059,1.9042388,1999.6,1999.2,0.001]
[1771290564375,1.486846,1999.5,1999.2,0.00017856]
[1771290564780,0.834,1999.5,1999.2,0.00017856]
[1771290566757,0.834,1999.5,1999.3,1.25043765]
[1771290567079,0.0011,1999.6,1999.3,1.87081445]
[1771290568450,0.0011,1999.6,1999.4,0.6203768]
[1771290569077,0.0011,1999.6,1999.5,1.25031257]
[1771290570362,0.0011,1999.6,1999.5,1.87068937]
[1771290570694,0.0011,1999.6,1999.5,1.25031257]
[1771290571215,0.0011,1999.6,1999.4,5.00141925]
[1771290573477,0.0011,1999.6,1999.4,0.6203768]
[1771290573997,0.0011,1999.9,1999.5,0.6203768]
[1771290574291,0.0011,2000.0,1999.9,0.6203768]
[1771290574981,0.0011,2000.4,1999.9,0.6203768]
[1771290575997,0.0011,2000.4,2000.0,1.25]
[1771290576170,0.0011,2000.4,2000.0,1.8703768]
[1771290580709,0.0011,2000.4,2000.1,0.6203768]
[1771290582602,0.0011,2000.4,2000.2,1.87025181]
[1771290582800,0.0011,2000.4,2000.3,0.6203768]
[1771290583802,0.0011,2000.4,2000.2,1.24987501]
[1771290584189,0.0011,2000.4,2000.1,1.24988802]
[1771290587491,0.0011,2000.4,2000.1,1.80761957]
[1771290588211,0.0011,2000.4,2000.2,0.55773155]
[1771290588910,0.0011,2000.4,2000.3,1.24981252]
[1771290591613,0.0011,2000.4,2000.3,1.85636866]
[1771290592838,0.0011,2000.7,2000.5,0.60655614]
[1771290593044,0.0011,2000.7,2000.3,2.17481252]
[1771290593045,0.0011,2000.9,2000.7,0.60655614]
[1771290593213,0.0011,2001.0,2000.8,1.24950019]
[1771290593408,0.825,2001.5,2000.9,0.60655614]
[1771290593611,0.825,2001.5,2000.8,7.23242401]
[1771290593612,0.55960373,2001.4,2000.8,7.23242401]
[1771290593940,0.825,2001.5,2000.9,1.53355614]
[1771290594124,0.825,2001.5,2001.0,0.60655614]
[1771290594519,7.79131334,2002.0,2001.1,0.60655614]
[1771290594826,0.55960373,2002.1,2001.3,0.60655614]
[1771290595139,0.55960373,2002.1,2001.4,1.24912561]
[1771290595140,0.55960373,2002.0,2001.4,1.24912561]
[1771290595539,0.55960373,2002.2,2001.4,7.83860557]
[1771290596114,0.55960373,2002.2,2001.5,1.53555614]
[1771290596341,0.826,2002.3,2001.6,6.58947996]
[1771290597439,0.826,2002.3,2001.7,1.2489384]
[1771290598446,0.826,2002.3,2001.7,1.85549454]
[1771290598922,0.55960373,2002.2,2001.6,1.24895073]
[1771290599741,0.826,2002.3,2001.6,1.85550687]
[1771290599939,0.826,2002.3,2001.7,0.60655614]
[1771290600141,0.901,2002.4,2001.8,6.58947996]
[1771290600344,0.901,2002.4,2001.9,0.60655614]
[1771290600521,1.38660373,2002.7,2002.0,5.98292382]
[1771290600844,0.827,2002.7,2002.0,5.98292382]
[1771290601144,1.80788326,2002.8,2002.0,5.98292382]
[1771290601145,1.80788326,2002.8,2002.1,0.931]
[1771290601740,0.55960373,2002.7,2002.1,0.931]
[1771290601942,4.9927612,2002.9,2002.1,2.17968215]
[1771290602120,0.55960373,2002.8,2002.1,2.17968215]
[1771290602316,6.72033757,2003.1,2002.1,2.17968215]
[1771290602317,0.55960373,2003.4,2002.2,0.60655614]
[1771290602519,4.99126528,2003.7,2002.5,0.60655614]
[1771290602520,0.55960373,2003.7,2002.5,0.60655614]
[1771290602738,0.55960373,2003.7,2002.3,0.901]
[1771290602739,0.901,2003.8,2002.8,0.60655614]
[1771290602945,1.80718129,2003.9,2002.8,0.60655614]
[1771290603244,0.55960373,2004.2,2003.1,0.60655614]
[1771290603444,0.55960373,2004.2,2003.2,0.933]
[1771290603831,0.55960373,2004.2,2003.3,1.24794089]
[1771290604162,2.14722385,2004.5,2003.4,0.60655614]
[1771290604317,0.55960373,2004.4,2003.2,1.24796699]
[1771290604522,0.55960373,2004.0,2003.1,2.18103307]
[1771290604722,0.55960373,2003.9,2003.1,0.933]
[1771290604934,0.55960373,2003.9,2003.1,2.18103635]
[1771290605154,0.55960373,2004.3,2003.2,0.60655614]
[1771290605350,2.97622385,2004.5,2003.2,0.60655614]
[1771290605351,3.53582758,2004.5,2003.2,0.60655614]
[1771290605849,1.80653214,2005.0,2003.7,0.60655614]
[1771290606052,0.55960373,2005.0,2003.9,0.60655614]
[1771290606250,12.71449495,2005.7,2003.8,0.933]
[1771290606251,0.55960373,2005.5,2004.3,0.60655614]
[1771290606418,0.55960373,2005.3,2003.6,7.72824355]
[1771290606639,0.55960373,2005.3,2003.8,0.60655614]
[1771290607181,0.55960373,2005.3,2004.0,0.60655614]
[1771290607860,1.80635529,2005.3,2004.1,1.24744274]
[1771290608170,1.24667102,2005.4,2004.3,0.60655614]
[1771290608373,1.80627475,2005.4,2004.3,0.60655614]
[1771290608958,2.45744558,2005.8,2004.6,0.60655614]
[1771290609273,1.21102027,2005.8,2004.8,0.60655614]
[1771290609582,2.45741018,2005.8,2004.8,0.60655614]
[1771290609873,2.45740894,2005.8,2004.9,1.24694498]
[1771290610375,2.45740894,2005.8,2004.8,5.59433607]
[1771290610376,3.01701267,2005.8,2004.8,2.78851968]
[1771290610678,0.55960373,2005.7,2004.6,0.60655614]
[1771290610973,0.55960373,2005.5,2004.5,0.60655614]
[1771290611141,0.83,2005.6,2004.5,0.60655614]
[1771290612150,0.83,2005.6,2004.7,0.60655614]
[1771290612355,2.07651303,2005.6,2004.7,0.60655614]
[1771290612662,2.63611676,2005.6,2004.6,1.24713159]
[1771290612824,0.55960373,2005.5,2004.6,1.24713159]
[1771290614144,0.55960373,2005.5,2004.6,1.82038101]
[1771290614351,1.80617813,2005.5,2004.6,1.82038101]
[1771290614549,0.0011,2005.3,2004.4,0.57324942]
[1771290616433,0.55650847,2005.3,2004.4,1.24720753]
[1771290616639,0.55650847,2005.3,2004.3,1.2472697]
[1771290618330,0.55650847,2005.3,2004.2,1.50924942]
[1771290618331,0.55540847,2005.1,2004.2,2.18337756]
[1771290618536,1.80223123,2005.1,2004.2,2.75662698]
[1771290619050,1.24682276,2005.1,2004.2,2.75662698]
[1771290619553,1.80223123,2005.1,2004.2,2.18337756]
[1771290619748,0.55540847,2005.0,2004.2,0.936]
[1771290620048,0.55540847,2005.0,2004.1,0.9]
[1771290620431,0.55540847,2004.8,2003.6,0.57324942]
[1771290620955,0.55540847,2004.8,2003.5,2.18181632]
[1771290621137,0.55540847,2004.8,2003.5,1.24781632]
[1771290621337,8.35538648,2004.4,2002.8,4.99291796]
[1771290621539,0.55540847,2004.1,2002.9,0.57324942]
[1771290622743,0.681,2004.2,2003.1,0.57324942]
[1771290622952,1.92840789,2004.2,2003.1,0.57324942]
[1771290623732,2.14635908,2004.3,2003.1,0.57324942]
[1771290623957,0.899,2004.3,2003.2,0.57324942]
[1771290624465,2.1463197,2004.3,2003.2,0.57324942]
[1771290624966,2.1463197,2004.3,2003.3,1.82119031]
[1771290625154,0.55540847,2004.2,2003.1,1.24806549]
[1771290625655,2.1463197,2004.3,2003.2,0.57324942]
[1771290625853,0.899,2004.3,2003.2,0.57324942]
[1771290626059,5.54422914,2004.5,2003.2,0.57324942]
[1771290626060,1.80261009,2004.5,2003.2,0.57324942]
[1771290626243,0.55540847,2004.4,2003.2,0.57324942]
[1771290626764,1.24720162,2004.5,2003.2,0.57324942]
[1771290626966,1.24720162,2004.5,2003.3,1.24794089]
[1771290627162,1.24720162,2004.5,2003.4,0.57424942]
[1771290627663,2.0751791,2004.6,2003.4,0.57424942]
[1771290629090,2.0751791,2004.6,2003.5,1.24781632]
[1771290629282,0.55540847,2004.2,2003.4,0.001]
[1771290629447,0.55540847,2004.2,2003.4,1.24887505]
[1771290629649,0.55540847,2004.2,2003.4,0.001]
[1771290630643,0.55540847,2004.0,2003.4,0.001]
[1771290631254,1.24756724,2003.9,2003.4,0.001]
[1771290632857,1.80297571,2003.9,2003.4,0.001]
[1771290634755,1.80254006,2004.6,2003.5,0.57324942]
[1771290635578,1.80254006,2004.6,2003.6,1.24775404]
[1771290635775,1.80254006,2004.6,2003.6,1.82100346]
[1771290636376,5.54320565,2004.9,2003.7,0.57324942]
[1771290636678,5.54320565,2004.9,2003.8,0.57324942]
[1771290636679,1.24703085,2004.8,2003.8,0.57324942]
[1771290636976,2.07499154,2004.9,2003.8,0.57324942]
[1771290638381,2.07499154,2004.9,2003.9,1.24756724]
[1771290638582,2.07499154,2004.9,2003.9,1.82081666]
[1771290641093,2.07499154,2004.9,2004.1,0.001]
[1771290641857,0.55540847,2004.8,2004.1,0.001]
[1771290642676,1.24706938,2004.7,2004.1,0.001]
[1771290642891,1.24705332,2004.8,2004.1,0.001]
[1771290645291,0.5252721,2004.7,2004.1,0.001]
[1771290647276,1.77240369,2004.6,2004.1,0.00015447]
[1771290648207,1.24713159,2004.6,2004.1,0.00015447]
[1771290648369,1.24711016,2004.7,2004.1,0.00015447]
[1771290649695,1.76455206,2004.7,2004.1,0.00015447]
[1771290653489,1.76455206,2004.7,2003.9,1.24856724]
[1771290653694,0.5174419,2004.6,2003.9,0.001]
[1771290654067,1.24719381,2004.5,2003.9,0.001]
[1771290654768,2.07319381,2004.5,2003.9,0.001]
[1771290655084,2.07319381,2004.5,2004.3,0.001]
[1771290655284,2.07429381,2004.5,2004.3,0.00015471]
[1771290656498,0.5174419,2004.3,2003.5,1.2477873]
[1771290656803,0.5174419,2004.3,2003.4,1.76330565]
[1771290657594,2.07429381,2004.5,2003.5,0.51447258]
[1771290658177,0.8271,2004.5,2003.5,0.51447258]
[1771290658383,2.07429971,2004.5,2003.7,0.51447258]
[1771290660998,2.07429971,2004.5,2003.8,1.76210208]
[1771290663814,0.8271,2004.5,2003.9,0.51447258]
[1771290664387,2.07429407,2004.5,2003.9,0.51447258]
[1771290664970,0.8271,2004.5,2003.9,0.51447258]
[1771290666113,0.8271,2004.5,2004.0,1.24750499]
[1771290666411,0.0011,2004.5,2004.1,0.51447258]
[1771290666619,0.0011,2004.5,2004.1,0.07963471]
[1771290668400,0.0011,2004.5,2004.2,1.2473805]
[1771290669218,0.0011,2004.5,2004.1,0.07963471]
[1771290669385,0.0011,2004.5,2004.1,1.32707676]
[1771290669591,0.0011,2004.5,2004.1,0.08063471]
[1771290669912,0.5185419,2004.5,2003.7,1.7621147]
[1771290670085,0.5185419,2004.5,2003.9,0.001]
[1771290670488,1.24725603,2004.4,2003.9,0.001]
[1771290671017,1.76578511,2004.5,2003.9,0.001]
[1771290671692,0.5174419,2004.4,2003.9,0.001]
[1771290672595,1.24731826,2004.3,2003.9,0.00017933]
[1771290673789,0.5174419,2004.2,2003.9,0.00017933]
[1771290673993,0.5174419,2004.2,2003.6,0.001]
[1771290674594,1.72931669,2004.1,2003.6,0.001]
[1771290675314,0.48187395,2004.0,2003.6,0.001]
[1771290676717,0.48187395,2004.2,2003.6,0.001]
[1771290678610,0.48187395,2004.2,2003.6,0.00017955]
[1771290679008,1.72931669,2004.1,2003.6,0.00017955]
[1771290681321,0.48187395,2003.9,2003.6,0.00017955]
[1771290681632,0.821,2004.0,2003.6,0.00017955]
[1771290682605,0.48187395,2003.9,2003.6,0.00017955]
[1771290683817,1.72944119,2003.9,2003.8,0.001]
[1771290684006,1.72944119,2003.9,2003.6,0.00017955]
[1771290684200,1.72944119,2003.9,2003.4,0.001]
[1771290684201,0.48187395,2003.8,2003.5,0.001]
[1771290684626,0.48187395,2003.8,2003.2,0.001]
[1771290685122,1.24748494,2004.1,2003.3,0.50179432]
[1771290685326,0.822,2004.0,2003.3,0.50179432]
[1771290686396,0.822,2004.0,2003.4,1.74867292]
[1771290686832,0.822,2004.0,2003.5,0.50079432]
[1771290688503,2.14638503,2004.2,2003.7,0.50079432]
[1771290690126,0.899,2004.2,2003.7,0.50079432]
[1771290690432,2.14638405,2004.2,2003.5,0.50079432]
[1771290690630,0.48187395,2004.1,2003.3,0.50179432]
[1771290692026,0.48187395,2004.1,2003.3,0.001]
[1771290693632,1.24750499,2004.0,2003.3,0.001]
[1771290694018,1.72937894,2004.0,2003.3,0.001]
[1771290694313,0.82,2003.9,2003.3,0.001]
[1771290694707,0.82,2003.9,2003.3,0.50179432]
[1771290696329,0.82,2003.9,2003.5,0.50079432]
[1771290696648,2.06757421,2003.9,2003.3,1.74968537]
[1771290696939,2.06757421,2003.9,2003.5,0.001]
[1771290697316,2.06867421,2003.9,2003.5,0.001]
[1771290698226,2.06867421,2003.9,2003.5,0.00017975]
[1771290698824,0.48187395,2003.8,2003.5,0.00017975]
[1771290699027,2.06867421,2003.9,2003.3,0.001]
[1771290699028,0.48187395,2003.6,2003.3,0.001]
[1771290699213,0.48187395,2003.6,2002.9,0.001]
[1771290699409,9.78771371,2003.9,2002.5,1.75023309]
[1771290699410,0.48187395,2003.4,2002.5,1.75023309]
[1771290699615,1.30187395,2003.4,2002.5,1.75023309]
[1771290700733,2.54980066,2003.4,2002.5,1.75023309]
[1771290702912,0.48187395,2003.3,2002.5,0.50179432]
[1771290703241,0.48187395,2003.3,2002.5,1.75022769]